[Event "January 9 Early 2024"]
[Site "https://www.chess.com"]
[Date "2024.01.11"]
[Round "11"]
[White "De Souza, Cristiano Gomes"]
[Black "Jovic, Stanoje"]
[Result "0-1"]
[Board "166"]
[TimeControl "180+1"]
[WhiteFideId "2151758"]
[BlackFideId "905020"]
[WhiteElo "2270"]
[BlackElo "2423"]
[WhiteTeam "BRA"]
[BlackTeam "SRB"]
[WhiteClock "0:00:16"]
[BlackClock "0:00:15"]

1. d4 {[%clk 0:03:00]}  Nf6 {[%clk 0:02:59]} 2. c4 {[%clk 0:03:00]}  e6 {[%clk 0:02:59]} 3. Nf3 {[%clk 0:03:00]}  d5 {[%clk 0:02:58]} 4. Nc3 {[%clk 0:02:59]}  Bb4 {[%clk 0:02:58]} 5. Bg5 {[%clk 0:02:58]}  O-O {[%clk 0:02:57]} 6. e3 {[%clk 0:02:58]}  h6 {[%clk 0:02:56]} 7. Bxf6 {[%clk 0:02:58]}  Qxf6 {[%clk 0:02:56]} 8. Rc1 {[%clk 0:02:58]}  Nd7 {[%clk 0:02:52]} 9. a3 {[%clk 0:02:57]}  Bxc3+ {[%clk 0:02:51]} 10. Rxc3 {[%clk 0:02:57]}  c6 {[%clk 0:02:51]} 11. Bd3 {[%clk 0:02:55]}  dxc4 {[%clk 0:02:50]} 12. Bxc4 {[%clk 0:02:54]}  e5 {[%clk 0:02:51]} 13. O-O {[%clk 0:02:52]}  e4 {[%clk 0:02:32]} 14. Nd2 {[%clk 0:02:45]}  Re8 {[%clk 0:02:31]} 15. Ba2 {[%clk 0:02:40]}  Nb6 {[%clk 0:02:27]} 16. Rc5 {[%clk 0:02:37]}  Qg6 {[%clk 0:02:15]} 17. Qh5 {[%clk 0:02:22]}  Qxh5 {[%clk 0:02:01]} 18. Rxh5 {[%clk 0:02:20]}  Bg4 {[%clk 0:01:58]} 19. Rc5 {[%clk 0:01:58]}  Be2 {[%clk 0:01:58]} 20. Rfc1 {[%clk 0:01:56]}  Na4 {[%clk 0:01:39]} 21. Ra5 {[%clk 0:01:53]}  Nxb2 {[%clk 0:01:34]} 22. Rb1 {[%clk 0:01:52]}  b6 {[%clk 0:01:28]} 23. Rf5 {[%clk 0:01:36]}  Na4 {[%clk 0:01:19]} 24. Bxf7+ {[%clk 0:01:33]}  Kh8 {[%clk 0:01:19]} 25. Bxe8 {[%clk 0:01:33]}  Rxe8 {[%clk 0:01:19]} 26. Rc1 {[%clk 0:01:31]}  Re6 {[%clk 0:01:08]} 27. Rf8+ {[%clk 0:01:27]}  Kh7 {[%clk 0:01:08]} 28. Rc8 {[%clk 0:01:26]}  c5 {[%clk 0:01:03]} 29. dxc5 {[%clk 0:00:40]}  Nxc5 {[%clk 0:01:01]} 30. Rc7 {[%clk 0:00:37]}  a5 {[%clk 0:00:58]} 31. h3 {[%clk 0:00:28]}  Rd6 {[%clk 0:00:54]} 32. Nc4 {[%clk 0:00:25]}  Bxc4 {[%clk 0:00:52]} 33. Rxc4 {[%clk 0:00:24]}  Rd3 {[%clk 0:00:45]} 34. Rd4 {[%clk 0:00:21]}  Rxa3 {[%clk 0:00:43]} 35. Rc6 {[%clk 0:00:20]}  Rb3 {[%clk 0:00:41]} 36. Rdd6 {[%clk 0:00:20]}  Rb1+ {[%clk 0:00:29]} 37. Kh2 {[%clk 0:00:19]}  Rb2 {[%clk 0:00:24]} 38. Rxb6 {[%clk 0:00:19]}  Rxf2 {[%clk 0:00:24]} 39. Rb5 {[%clk 0:00:19]}  Nd3 {[%clk 0:00:23]} 40. Rxa5 {[%clk 0:00:19]}  Ne1 {[%clk 0:00:21]} 41. Kg3 {[%clk 0:00:19]}  Rxg2+ {[%clk 0:00:20]} 42. Kf4 {[%clk 0:00:19]}  Rh2 {[%clk 0:00:16]} 43. Kxe4 {[%clk 0:00:19]}  Rxh3 {[%clk 0:00:16]} 44. Ra7 {[%clk 0:00:19]}  Rh4+ {[%clk 0:00:16]} 45. Ke5 {[%clk 0:00:18]}  Nf3+ {[%clk 0:00:16]} 46. Kd5 {[%clk 0:00:18]}  Rg4 {[%clk 0:00:15]} 47. Rdd7 {[%clk 0:00:18]}  h5 {[%clk 0:00:16]} 48. e4 {[%clk 0:00:18]}  h4 {[%clk 0:00:16]} 49. e5 {[%clk 0:00:19]}  Rg5 {[%clk 0:00:16]} 50. Re7 {[%clk 0:00:17]}  h3 {[%clk 0:00:16]} 51. Ra1 {[%clk 0:00:15]}  h2 {[%clk 0:00:16]} 52. Rh1 {[%clk 0:00:16]}  Rg1 {[%clk 0:00:15]} 53. Rxh2+ {[%clk 0:00:16]}  Nxh2 {[%clk 0:00:16]} 54. e6 {[%clk 0:00:16]}  Ng4 {[%clk 0:00:16]} 55. Rf7 {[%clk 0:00:16]}  Nf6+ {[%clk 0:00:16]} 56. Ke5 {[%clk 0:00:16]}  Re1+ {[%clk 0:00:16]} 57. Kf5 {[%clk 0:00:16]}  Rf1+ {[%clk 0:00:16]} 58. Ke5 {[%clk 0:00:16]}  Kg6 {[%clk 0:00:16]} 59. Rxf6+ {[%clk 0:00:16]}  gxf6+ {[%clk 0:00:15]} 60. Kd6 {[%clk 0:00:16]}  Rd1+ {[%clk 0:00:15]} 61. Ke7 {[%clk 0:00:16]}  f5 {[%clk 0:00:15]} 62. Kf8 {[%clk 0:00:16]}  Re1 {[%clk 0:00:14]} 63. e7 {[%clk 0:00:17]}  f4 {[%clk 0:00:15]} 64. e8=Q+ {[%clk 0:00:15]}  Rxe8+ {[%clk 0:00:15]} 65. Kxe8 {[%clk 0:00:16]}  f3 {[%clk 0:00:15]} 0-1

[Event "January 9 Early 2024"]
[Site "https://www.chess.com"]
[Date "2024.01.11"]
[Round "11"]
[White "Klekowski, Maciej"]
[Black "Dominguez Perez, Leinier"]
[Result "1/2-1/2"]
[Board "175"]
[TimeControl "180+1"]
[WhiteFideId "1132717"]
[BlackFideId "3503240"]
[WhiteElo "2884"]
[BlackElo "2981"]
[WhiteTeam "POL"]
[BlackTeam "USA"]
[WhiteClock "0:00:10"]
[BlackClock "0:00:07"]

1. c4 {[%clk 0:03:00]}  c5 {[%clk 0:02:57]} 2. Nc3 {[%clk 0:03:00]}  g6 {[%clk 0:02:57]} 3. g3 {[%clk 0:03:00]}  Bg7 {[%clk 0:02:57]} 4. Bg2 {[%clk 0:03:00]}  Nc6 {[%clk 0:02:57]} 5. b3 {[%clk 0:03:00]}  e6 {[%clk 0:02:54]} 6. Ba3 {[%clk 0:03:00]}  Qa5 {[%clk 0:02:50]} 7. Bb2 {[%clk 0:02:58]}  Nge7 {[%clk 0:02:48]} 8. e3 {[%clk 0:02:47]}  O-O {[%clk 0:02:46]} 9. Nge2 {[%clk 0:02:47]}  d5 {[%clk 0:02:46]} 10. O-O {[%clk 0:02:31]}  Rd8 {[%clk 0:02:45]} 11. cxd5 {[%clk 0:02:26]}  exd5 {[%clk 0:02:44]} 12. Na4 {[%clk 0:02:11]}  Bxb2 {[%clk 0:02:22]} 13. Nxb2 {[%clk 0:02:12]}  Bg4 {[%clk 0:02:16]} 14. f3 {[%clk 0:02:06]}  Bd7 {[%clk 0:02:08]} 15. g4 {[%clk 0:01:49]}  Rac8 {[%clk 0:02:04]} 16. Ng3 {[%clk 0:01:45]}  b5 {[%clk 0:01:59]} 17. f4 {[%clk 0:01:44]}  c4 {[%clk 0:01:55]} 18. f5 {[%clk 0:01:44]}  Ne5 {[%clk 0:01:51]} 19. d4 {[%clk 0:01:24]}  cxd3 {[%clk 0:01:24]} 20. Nxd3 {[%clk 0:01:24]}  Qc3 {[%clk 0:01:25]} 21. Nxe5 {[%clk 0:01:24]}  Qxe5 {[%clk 0:01:25]} 22. Qd4 {[%clk 0:01:11]}  Nc6 {[%clk 0:01:12]} 23. Qxd5 {[%clk 0:01:01]}  Qxe3+ {[%clk 0:00:44]} 24. Kh1 {[%clk 0:01:00]}  Ne7 {[%clk 0:00:38]} 25. Qe4 {[%clk 0:00:56]}  Qxe4 {[%clk 0:00:37]} 26. Nxe4 {[%clk 0:00:57]}  Bc6 {[%clk 0:00:36]} 27. Rae1 {[%clk 0:00:47]}  Bxe4 {[%clk 0:00:32]} 28. Rxe4 {[%clk 0:00:47]}  Nd5 {[%clk 0:00:30]} 29. fxg6 {[%clk 0:00:47]}  hxg6 {[%clk 0:00:30]} 30. Re5 {[%clk 0:00:42]}  Nc3 {[%clk 0:00:29]} 31. Re7 {[%clk 0:00:42]}  Rd1 {[%clk 0:00:20]} 32. Rxd1 {[%clk 0:00:34]}  Nxd1 {[%clk 0:00:20]} 33. Bd5 {[%clk 0:00:34]}  Rc5 {[%clk 0:00:19]} 34. Bxf7+ {[%clk 0:00:31]}  Kg7 {[%clk 0:00:19]} 35. Rxa7 {[%clk 0:00:31]}  Kf6 {[%clk 0:00:18]} 36. Kg2 {[%clk 0:00:24]}  g5 {[%clk 0:00:15]} 37. Kf3 {[%clk 0:00:20]}  Ke5 {[%clk 0:00:15]} 38. Bg6 {[%clk 0:00:19]}  Nc3 {[%clk 0:00:09]} 39. Bf5 {[%clk 0:00:17]}  Nd5 {[%clk 0:00:09]} 40. a4 {[%clk 0:00:17]}  Rc3+ {[%clk 0:00:09]} 41. Ke2 {[%clk 0:00:17]}  b4 {[%clk 0:00:08]} 42. a5 {[%clk 0:00:17]}  Rxb3 {[%clk 0:00:08]} 43. a6 {[%clk 0:00:14]}  Ra3 {[%clk 0:00:09]} 44. Kd2 {[%clk 0:00:14]}  Kd4 {[%clk 0:00:08]} 45. Rd7 {[%clk 0:00:13]}  Rxa6 {[%clk 0:00:08]} 46. Kc2 {[%clk 0:00:09]}  Ke5 {[%clk 0:00:08]} 47. Kb3 {[%clk 0:00:09]}  Ra3+ {[%clk 0:00:08]} 48. Kb2 {[%clk 0:00:09]}  Rh3 {[%clk 0:00:09]} 49. Rg7 {[%clk 0:00:06]}  Kf4 {[%clk 0:00:08]} 50. Rd7 {[%clk 0:00:05]}  Ke5 {[%clk 0:00:05]} 51. Rg7 {[%clk 0:00:05]}  Ne3 {[%clk 0:00:04]} 52. Rxg5 {[%clk 0:00:04]}  Nc4+ {[%clk 0:00:04]} 53. Ka1 {[%clk 0:00:04]}  Kd4 {[%clk 0:00:04]} 54. Be6 {[%clk 0:00:03]}  Rxh2 {[%clk 0:00:04]} 55. Bxc4 {[%clk 0:00:02]}  Kxc4 {[%clk 0:00:04]} 56. Rf5 {[%clk 0:00:03]}  Rh1+ {[%clk 0:00:03]} 57. Kb2 {[%clk 0:00:03]}  Rh2+ {[%clk 0:00:03]} 58. Kb1 {[%clk 0:00:04]}  Kb3 {[%clk 0:00:03]} 59. Rf3+ {[%clk 0:00:04]}  Ka4 {[%clk 0:00:04]} 60. Rg3 {[%clk 0:00:04]}  Rh1+ {[%clk 0:00:04]} 61. Kb2 {[%clk 0:00:05]}  Rh2+ {[%clk 0:00:05]} 62. Kb1 {[%clk 0:00:05]}  Rh6 {[%clk 0:00:04]} 63. g5 {[%clk 0:00:05]}  Rg6 {[%clk 0:00:04]} 64. Kb2 {[%clk 0:00:06]}  Kb5 {[%clk 0:00:04]} 65. Rg4 {[%clk 0:00:07]}  Kc5 {[%clk 0:00:05]} 66. Kb3 {[%clk 0:00:07]}  Kd5 {[%clk 0:00:05]} 67. Rxb4 {[%clk 0:00:08]}  Ke5 {[%clk 0:00:06]} 68. Rb5+ {[%clk 0:00:08]}  Kf4 {[%clk 0:00:06]} 69. Kc4 {[%clk 0:00:09]}  Rxg5 {[%clk 0:00:06]} 70. Rxg5 {[%clk 0:00:10]}  Kxg5 {[%clk 0:00:07]} 1/2-1/2

[Event "January 9 Early 2024"]
[Site "https://www.chess.com"]
[Date "2024.01.11"]
[Round "11"]
[White "Tulchynskyi, Feliks"]
[Black "Golubovic, Erik"]
[Result "1-0"]
[Board "177"]
[TimeControl "180+1"]
[WhiteFideId "34127895"]
[BlackFideId "14586908"]
[WhiteElo "2573"]
[BlackElo "2312"]
[WhiteTeam "UKR"]
[BlackTeam "CRO"]
[WhiteClock "0:00:09"]
[BlackClock "0:00:04"]

1. d4 {[%clk 0:02:43]}  Nf6 {[%clk 0:02:59]} 2. c4 {[%clk 0:02:39]}  c5 {[%clk 0:02:59]} 3. d5 {[%clk 0:02:38]}  b5 {[%clk 0:02:58]} 4. cxb5 {[%clk 0:02:37]}  a6 {[%clk 0:02:58]} 5. bxa6 {[%clk 0:02:38]}  Bxa6 {[%clk 0:02:59]} 6. Nc3 {[%clk 0:02:36]}  d6 {[%clk 0:02:59]} 7. Nf3 {[%clk 0:02:35]}  g6 {[%clk 0:02:59]} 8. Nd2 {[%clk 0:02:35]}  Bg7 {[%clk 0:02:57]} 9. e4 {[%clk 0:02:35]}  Bxf1 {[%clk 0:02:56]} 10. Nxf1 {[%clk 0:02:36]}  O-O {[%clk 0:02:54]} 11. Ne3 {[%clk 0:02:35]}  Na6 {[%clk 0:02:45]} 12. O-O {[%clk 0:02:34]}  Qa5 {[%clk 0:02:41]} 13. Qe2 {[%clk 0:02:23]}  Rfb8 {[%clk 0:02:36]} 14. Nc4 {[%clk 0:02:13]}  Qc7 {[%clk 0:02:25]} 15. Rb1 {[%clk 0:02:07]}  Nd7 {[%clk 0:02:23]} 16. Bd2 {[%clk 0:02:05]}  Qa7 {[%clk 0:02:15]} 17. a4 {[%clk 0:01:57]}  Nb4 {[%clk 0:02:14]} 18. b3 {[%clk 0:01:54]}  Nc2 {[%clk 0:02:13]} 19. Nb5 {[%clk 0:01:49]}  Rxb5 {[%clk 0:02:04]} 20. axb5 {[%clk 0:01:49]}  Nd4 {[%clk 0:02:03]} 21. Qd3 {[%clk 0:01:48]}  Nxb5 {[%clk 0:01:59]} 22. Na5 {[%clk 0:01:36]}  Nd4 {[%clk 0:01:54]} 23. Bc3 {[%clk 0:01:31]}  Ne5 {[%clk 0:01:50]} 24. Qd1 {[%clk 0:01:24]}  Qb6 {[%clk 0:01:45]} 25. Nc4 {[%clk 0:01:21]}  Nxc4 {[%clk 0:01:44]} 26. bxc4 {[%clk 0:01:21]}  Qc7 {[%clk 0:01:38]} 27. Ra1 {[%clk 0:01:17]}  Rxa1 {[%clk 0:01:37]} 28. Bxa1 {[%clk 0:01:14]}  Qa5 {[%clk 0:01:32]} 29. Bxd4 {[%clk 0:01:13]}  Bxd4 {[%clk 0:01:31]} 30. Qc2 {[%clk 0:01:11]}  Qa3 {[%clk 0:01:26]} 31. Qe2 {[%clk 0:01:07]}  Kg7 {[%clk 0:01:24]} 32. g3 {[%clk 0:01:07]}  h5 {[%clk 0:01:23]} 33. Kg2 {[%clk 0:01:08]}  Qb3 {[%clk 0:01:20]} 34. Rd1 {[%clk 0:01:05]}  Qb4 {[%clk 0:01:16]} 35. Qd3 {[%clk 0:01:03]}  Qb2 {[%clk 0:01:14]} 36. Rd2 {[%clk 0:01:04]}  Qa1 {[%clk 0:01:13]} 37. Qb3 {[%clk 0:00:59]}  Qe1 {[%clk 0:01:10]} 38. Qd3 {[%clk 0:00:58]}  Qa1 {[%clk 0:01:08]} 39. Re2 {[%clk 0:00:59]}  Qc1 {[%clk 0:01:07]} 40. Qb3 {[%clk 0:00:57]}  Qa1 {[%clk 0:01:04]} 41. h3 {[%clk 0:00:51]}  Qc1 {[%clk 0:01:00]} 42. Qd3 {[%clk 0:00:52]}  Qa1 {[%clk 0:00:58]} 43. g4 {[%clk 0:00:50]}  hxg4 {[%clk 0:00:56]} 44. hxg4 {[%clk 0:00:50]}  Qc1 {[%clk 0:00:56]} 45. Rc2 {[%clk 0:00:42]}  Qb1 {[%clk 0:00:43]} 46. Rd2 {[%clk 0:00:41]}  Qc1 {[%clk 0:00:40]} 47. Qc2 {[%clk 0:00:38]}  Qe1 {[%clk 0:00:39]} 48. Rd1 {[%clk 0:00:34]}  Qa5 {[%clk 0:00:34]} 49. Rh1 {[%clk 0:00:34]}  g5 {[%clk 0:00:20]} 50. Qc1 {[%clk 0:00:31]}  Bf6 {[%clk 0:00:19]} 51. Qe3 {[%clk 0:00:30]}  Qa2 {[%clk 0:00:12]} 52. Qh3 {[%clk 0:00:27]}  Kg8 {[%clk 0:00:10]} 53. Qd3 {[%clk 0:00:23]}  Qb2 {[%clk 0:00:09]} 54. Rb1 {[%clk 0:00:20]}  Qe5 {[%clk 0:00:08]} 55. Qf3 {[%clk 0:00:19]}  Kg7 {[%clk 0:00:08]} 56. Rh1 {[%clk 0:00:17]}  Qd4 {[%clk 0:00:07]} 57. Rc1 {[%clk 0:00:17]}  Qb2 {[%clk 0:00:07]} 58. Rd1 {[%clk 0:00:15]}  Qe5 {[%clk 0:00:07]} 59. Qf5 {[%clk 0:00:15]}  Qc3 {[%clk 0:00:07]} 60. Rh1 {[%clk 0:00:13]}  Qxc4 {[%clk 0:00:05]} 61. Rh7+ {[%clk 0:00:12]}  Kg8 {[%clk 0:00:05]} 62. Rh5 {[%clk 0:00:10]}  Qc1 {[%clk 0:00:05]} 63. Qc8+ {[%clk 0:00:08]}  Kg7 {[%clk 0:00:05]} 64. Qh8+ {[%clk 0:00:08]}  Kg6 {[%clk 0:00:04]} 65. Qh7# {[%clk 0:00:09]} 1-0

[Event "January 9 Early 2024"]
[Site "https://www.chess.com"]
[Date "2024.01.11"]
[Round "11"]
[White "Santos Flores, Alberto"]
[Black "Shkapenko, Pavel"]
[Result "1/2-1/2"]
[Board "179"]
[TimeControl "180+1"]
[WhiteFideId "3601234"]
[BlackFideId "4151933"]
[WhiteElo "2509"]
[BlackElo "2723"]
[WhiteTeam "ECU"]
[BlackTeam "FID"]
[WhiteClock "0:00:02"]
[BlackClock "0:00:09"]

1. e4 {[%clk 0:03:00]}  e5 {[%clk 0:03:00]} 2. Nf3 {[%clk 0:03:00]}  Nc6 {[%clk 0:03:00]} 3. Bc4 {[%clk 0:03:00]}  d6 {[%clk 0:03:00]} 4. O-O {[%clk 0:02:59]}  Be7 {[%clk 0:02:59]} 5. d4 {[%clk 0:02:58]}  Nf6 {[%clk 0:02:59]} 6. Nc3 {[%clk 0:02:56]}  Bg4 {[%clk 0:02:59]} 7. dxe5 {[%clk 0:02:56]}  dxe5 {[%clk 0:02:59]} 8. Be3 {[%clk 0:02:47]}  O-O {[%clk 0:02:54]} 9. h3 {[%clk 0:02:43]}  Qxd1 {[%clk 0:02:45]} 10. Raxd1 {[%clk 0:02:44]}  Bxf3 {[%clk 0:02:46]} 11. gxf3 {[%clk 0:02:44]}  Nd4 {[%clk 0:02:39]} 12. Bxd4 {[%clk 0:02:41]}  exd4 {[%clk 0:02:40]} 13. Rxd4 {[%clk 0:02:41]}  Bd6 {[%clk 0:02:41]} 14. Ne2 {[%clk 0:02:30]}  Rfe8 {[%clk 0:02:23]} 15. c3 {[%clk 0:02:22]}  Nh5 {[%clk 0:02:18]} 16. Bb3 {[%clk 0:02:16]}  Re7 {[%clk 0:02:14]} 17. Bd5 {[%clk 0:01:45]}  Rb8 {[%clk 0:02:06]} 18. Rdd1 {[%clk 0:01:40]}  Be5 {[%clk 0:02:00]} 19. Rfe1 {[%clk 0:01:34]}  c6 {[%clk 0:01:58]} 20. Bb3 {[%clk 0:01:34]}  Rbe8 {[%clk 0:01:58]} 21. Rd3 {[%clk 0:01:20]}  Kf8 {[%clk 0:01:54]} 22. Red1 {[%clk 0:01:20]}  g6 {[%clk 0:01:32]} 23. Rd7 {[%clk 0:01:19]}  Kg7 {[%clk 0:01:31]} 24. Kg2 {[%clk 0:01:13]}  Bc7 {[%clk 0:01:26]} 25. Bc2 {[%clk 0:00:51]}  Nf6 {[%clk 0:01:26]} 26. Rxe7 {[%clk 0:00:51]}  Rxe7 {[%clk 0:01:27]} 27. Ng3 {[%clk 0:00:46]}  h5 {[%clk 0:01:14]} 28. h4 {[%clk 0:00:43]}  Bf4 {[%clk 0:01:14]} 29. Ne2 {[%clk 0:00:42]}  Bc7 {[%clk 0:01:14]} 30. Rd4 {[%clk 0:00:39]}  Bb6 {[%clk 0:01:13]} 31. Rd1 {[%clk 0:00:38]}  Nd5 {[%clk 0:01:08]} 32. exd5 {[%clk 0:00:29]}  Rxe2 {[%clk 0:01:07]} 33. Bb3 {[%clk 0:00:26]}  Rxf2+ {[%clk 0:01:06]} 34. Kg3 {[%clk 0:00:26]}  Rxb2 {[%clk 0:00:44]} 35. dxc6 {[%clk 0:00:21]}  bxc6 {[%clk 0:00:44]} 36. Rd7 {[%clk 0:00:21]}  Bf2+ {[%clk 0:00:40]} 37. Kh3 {[%clk 0:00:20]}  Kf6 {[%clk 0:00:39]} 38. Rxf7+ {[%clk 0:00:20]}  Ke5 {[%clk 0:00:39]} 39. Bc4 {[%clk 0:00:17]}  Rc2 {[%clk 0:00:31]} 40. Bd3 {[%clk 0:00:17]}  Rxc3 {[%clk 0:00:31]} 41. Bxg6 {[%clk 0:00:17]}  Rc4 {[%clk 0:00:29]} 42. Kg2 {[%clk 0:00:16]}  Bxh4 {[%clk 0:00:28]} 43. Rxa7 {[%clk 0:00:16]}  Bg5 {[%clk 0:00:23]} 44. Bxh5 {[%clk 0:00:13]}  Rc2+ {[%clk 0:00:21]} 45. Kh3 {[%clk 0:00:12]}  Bf4 {[%clk 0:00:20]} 46. Bg6 {[%clk 0:00:08]}  Rh2+ {[%clk 0:00:19]} 47. Kg4 {[%clk 0:00:08]}  Rg2+ {[%clk 0:00:20]} 48. Kh5 {[%clk 0:00:09]}  Rg5+ {[%clk 0:00:20]} 49. Kh6 {[%clk 0:00:09]}  Rg3+ {[%clk 0:00:19]} 50. Kg7 {[%clk 0:00:08]}  Rxf3 {[%clk 0:00:19]} 51. Ra8 {[%clk 0:00:07]}  Kd5 {[%clk 0:00:18]} 52. a4 {[%clk 0:00:07]}  Be5+ {[%clk 0:00:17]} 53. Kg8 {[%clk 0:00:07]}  Ra3 {[%clk 0:00:17]} 54. Kf7 {[%clk 0:00:05]}  Kc5 {[%clk 0:00:17]} 55. Bf5 {[%clk 0:00:04]}  Bc3 {[%clk 0:00:17]} 56. Ke6 {[%clk 0:00:04]}  Kd4 {[%clk 0:00:16]} 57. Rd8+ {[%clk 0:00:04]}  Kc4 {[%clk 0:00:15]} 58. Bd3+ {[%clk 0:00:03]}  Kc5 {[%clk 0:00:15]} 59. Ra8 {[%clk 0:00:02]}  Kd4 {[%clk 0:00:13]} 60. Bf1 {[%clk 0:00:01]}  c5 {[%clk 0:00:13]} 61. Bb5 {[%clk 0:00:01]}  Bb4 {[%clk 0:00:13]} 62. Rc8 {[%clk 0:00:01]}  Re3+ {[%clk 0:00:11]} 63. Kf5 {[%clk 0:00:01]}  Ra3 {[%clk 0:00:11]} 64. Ke6 {[%clk 0:00:02]}  Ke4 {[%clk 0:00:09]} 65. Rc7 {[%clk 0:00:01]}  Kd4 {[%clk 0:00:09]} 66. Rc8 {[%clk 0:00:02]} 1/2-1/2

[Event "January 9 Early 2024"]
[Site "https://www.chess.com"]
[Date "2024.01.11"]
[Round "11"]
[White "Ovezdurdyyeva, Jemal"]
[Black "Baziuk, Vladyslav"]
[Result "0-1"]
[Board "180"]
[TimeControl "180+1"]
[WhiteFideId "14001888"]
[BlackFideId "34107940"]
[WhiteElo "2458"]
[BlackElo "2669"]
[WhiteTeam "TKM"]
[BlackTeam "UKR"]
[WhiteClock "0:00:07"]
[BlackClock "0:00:03"]

1. e4 {[%clk 0:02:59]}  c5 {[%clk 0:02:59]} 2. Nf3 {[%clk 0:02:59]}  Nc6 {[%clk 0:02:59]} 3. c3 {[%clk 0:02:58]}  d5 {[%clk 0:02:56]} 4. exd5 {[%clk 0:02:56]}  Qxd5 {[%clk 0:02:57]} 5. d4 {[%clk 0:02:56]}  Nf6 {[%clk 0:02:55]} 6. Be2 {[%clk 0:02:55]}  e6 {[%clk 0:02:51]} 7. O-O {[%clk 0:02:53]}  cxd4 {[%clk 0:02:47]} 8. cxd4 {[%clk 0:02:50]}  Be7 {[%clk 0:02:47]} 9. Nc3 {[%clk 0:02:50]}  Qd8 {[%clk 0:02:47]} 10. Be3 {[%clk 0:02:43]}  O-O {[%clk 0:02:45]} 11. a3 {[%clk 0:02:42]}  b6 {[%clk 0:02:37]} 12. Ne5 {[%clk 0:02:41]}  Bb7 {[%clk 0:02:36]} 13. Bf3 {[%clk 0:02:41]}  Rc8 {[%clk 0:02:36]} 14. Rc1 {[%clk 0:02:38]}  Nd7 {[%clk 0:02:15]} 15. Nb5 {[%clk 0:02:25]}  Ndxe5 {[%clk 0:01:58]} 16. dxe5 {[%clk 0:02:24]}  Ba6 {[%clk 0:01:03]} 17. Bxc6 {[%clk 0:01:44]}  Rxc6 {[%clk 0:01:02]} 18. Rxc6 {[%clk 0:01:44]}  Bxb5 {[%clk 0:01:02]} 19. Qxd8 {[%clk 0:01:41]}  Rxd8 {[%clk 0:01:03]} 20. Rc7 {[%clk 0:01:41]}  Bxf1 {[%clk 0:00:58]} 21. Kxf1 {[%clk 0:01:37]}  Bc5 {[%clk 0:00:49]} 22. Bxc5 {[%clk 0:01:36]}  bxc5 {[%clk 0:00:49]} 23. Rxa7 {[%clk 0:01:29]}  Rb8 {[%clk 0:00:47]} 24. Rc7 {[%clk 0:01:21]}  g5 {[%clk 0:00:46]} 25. Rxc5 {[%clk 0:01:20]}  Rxb2 {[%clk 0:00:46]} 26. Rc3 {[%clk 0:01:12]}  Ra2 {[%clk 0:00:45]} 27. g3 {[%clk 0:01:08]}  Kg7 {[%clk 0:00:44]} 28. Re3 {[%clk 0:01:04]}  Kg6 {[%clk 0:00:43]} 29. h3 {[%clk 0:01:03]}  h5 {[%clk 0:00:41]} 30. Kg2 {[%clk 0:00:56]}  g4 {[%clk 0:00:40]} 31. hxg4 {[%clk 0:00:54]}  hxg4 {[%clk 0:00:41]} 32. Re4 {[%clk 0:00:53]}  Kg5 {[%clk 0:00:32]} 33. a4 {[%clk 0:00:48]}  Ra1 {[%clk 0:00:29]} 34. Rf4 {[%clk 0:00:47]}  Ra2 {[%clk 0:00:28]} 35. Rxf7 {[%clk 0:00:46]}  Rxa4 {[%clk 0:00:27]} 36. Rf6 {[%clk 0:00:46]}  Ra6 {[%clk 0:00:22]} 37. Kf1 {[%clk 0:00:46]}  Rb6 {[%clk 0:00:21]} 38. Ke2 {[%clk 0:00:45]}  Ra6 {[%clk 0:00:21]} 39. Ke3 {[%clk 0:00:45]}  Rb6 {[%clk 0:00:20]} 40. Kd4 {[%clk 0:00:46]}  Rb2 {[%clk 0:00:19]} 41. Kc5 {[%clk 0:00:43]}  Rd2 {[%clk 0:00:19]} 42. Kc6 {[%clk 0:00:38]}  Kh5 {[%clk 0:00:15]} 43. Kc5 {[%clk 0:00:19]}  Kg5 {[%clk 0:00:15]} 44. Kc4 {[%clk 0:00:19]}  Kh5 {[%clk 0:00:14]} 45. Kc3 {[%clk 0:00:19]}  Re2 {[%clk 0:00:12]} 46. Kd3 {[%clk 0:00:18]}  Ra2 {[%clk 0:00:12]} 47. Ke3 {[%clk 0:00:17]}  Ra6 {[%clk 0:00:11]} 48. Kd4 {[%clk 0:00:16]}  Rc6 {[%clk 0:00:07]} 49. Ke4 {[%clk 0:00:15]}  Kg5 {[%clk 0:00:08]} 50. Ke3 {[%clk 0:00:15]}  Rc3+ {[%clk 0:00:08]} 51. Kd4 {[%clk 0:00:15]}  Rc6 {[%clk 0:00:08]} 52. Kd3 {[%clk 0:00:14]}  Ra6 {[%clk 0:00:08]} 53. Kc4 {[%clk 0:00:14]}  Ra2 {[%clk 0:00:08]} 54. Kc3 {[%clk 0:00:13]}  Re2 {[%clk 0:00:06]} 55. Kd3 {[%clk 0:00:13]}  Rxe5 {[%clk 0:00:06]} 56. Rf4 {[%clk 0:00:09]}  Ra5 {[%clk 0:00:05]} 57. Kd4 {[%clk 0:00:07]}  e5+ {[%clk 0:00:03]} 0-1